bitfinex-derivatives/quotes_BTCF0:USTF0_20251119
["timestamp","ask_amount","ask_price","bid_price","bid_amount"]
[1763561120967,0.0001643,91338.0,91337.0,0.1542749]
[1763561121161,0.0001643,91338.0,91337.0,0.5150749]
[1763561122271,0.3608,91356.0,91355.0,0.1542533]
[1763561122465,0.3608,91356.0,91355.0,0.2600133]
[1763561122665,0.00073267,91360.0,91355.0,0.2600133]
[1763561122666,0.04620267,91360.0,91359.0,0.1542485]
[1763561123763,0.05991267,91360.0,91359.0,0.04471]
[1763561124066,0.05991267,91360.0,91355.0,0.10576]
[1763561124067,0.04448,91351.0,91350.0,0.04490419]
[1763561124269,0.04448,91351.0,91350.0,0.10812222]
[1763561124674,0.3608,91357.0,91356.0,0.04284]
[1763561124867,0.40401,91357.0,91356.0,0.04284]
[1763561125069,0.04321,91351.0,91350.0,0.02122419]
[1763561125371,0.04321,91351.0,91350.0,0.12918222]
[1763561126376,0.1527581,91351.0,91350.0,0.00016419]
[1763561126576,0.1537581,91351.0,91350.0,0.00016419]
[1763561127183,0.04321,91334.0,91333.0,0.1095686]
[1763561127378,0.01318,91340.0,91330.0,0.00219803]
[1763561127379,0.04321,91331.0,91330.0,0.00219803]
[1763561129472,0.04321,91324.0,91323.0,0.1095809]
[1763561130974,0.04321,91324.0,91321.0,0.10592419]
[1763561130975,0.05639,91322.0,91321.0,0.10592419]
[1763561131373,0.05639,91322.0,91321.0,0.14876419]
[1763561131877,0.04321,91322.0,91321.0,0.14876419]
[1763561132081,0.001,91324.0,91323.0,0.04434]
[1763561132576,0.02272,91324.0,91323.0,0.04434]
[1763561132781,0.04512,91324.0,91323.0,0.04434]
[1763561132982,0.04412,91324.0,91323.0,0.04434]
[1763561133174,0.04412,91322.0,91321.0,0.10592419]
[1763561134385,0.04412,91322.0,91321.0,0.25984829]
[1763561134581,0.1537029,91322.0,91321.0,0.10592419]
[1763561134780,0.1537029,91322.0,91321.0,0.00016419]
[1763561136393,0.04412,91305.0,91304.0,0.3608]
[1763561136686,0.02294999,91310.0,91293.0,0.3608]
[1763561136687,0.04412,91301.0,91300.0,0.13387733]
[1763561136983,0.04412,91301.0,91300.0,0.15614733]
[1763561138274,0.04412,91301.0,91300.0,0.00219803]
[1763561138670,0.04412,91301.0,91300.0,0.04653803]
[1763561139181,0.40492,91303.0,91302.0,0.04434]
[1763561139576,0.3608,91303.0,91302.0,0.04434]
[1763561139779,0.05723429,91310.0,91309.0,0.04434]
[1763561139977,0.05796696,91310.0,91309.0,0.1539385]
[1763561140880,0.04501696,91310.0,91309.0,0.1539385]
[1763561141078,0.00089696,91310.0,91309.0,0.1539385]
[1763561141780,0.02261696,91310.0,91309.0,0.1539385]
[1763561141974,0.04501696,91310.0,91309.0,0.1539385]
[1763561142175,0.05796696,91310.0,91309.0,0.1539385]
[1763561142387,0.05796696,91310.0,91309.0,0.1316685]
[1763561143282,0.05796696,91310.0,91309.0,0.1095985]
[1763561143583,0.04412,91307.0,91306.0,0.1096016]
[1763561144179,0.04412,91307.0,91306.0,0.1539416]
[1763561145084,0.00089696,91310.0,91309.0,0.1539385]
[1763561145583,0.02261696,91310.0,91309.0,0.1539385]
[1763561145776,0.05796696,91310.0,91309.0,0.1539385]
[1763561146688,0.04501696,91310.0,91309.0,0.1539385]
[1763561147681,0.01384696,91310.0,91303.0,0.1096045]
[1763561147993,0.04412,91304.0,91303.0,0.1316745]
[1763561148288,0.04412,91304.0,91303.0,0.1539445]
[1763561149082,0.02311428,91310.0,91301.0,0.109607]
[1763561149083,0.04312,91302.0,91301.0,0.109607]
[1763561149280,0.1537281,91301.0,91300.0,0.00219803]
[1763561149880,0.05680267,91300.0,91299.0,0.10961]
[1763561150587,0.05580267,91300.0,91299.0,0.10961]
[1763561152484,0.05580267,91300.0,91299.0,0.13168]
[1763561152887,0.16541197,91300.0,91299.0,0.13168]
[1763561153080,0.16541197,91300.0,91299.0,0.10961]
[1763561153477,0.1225593,91300.0,91299.0,0.1096105]
[1763561153684,0.1666793,91300.0,91299.0,0.1096105]
[1763561156392,0.05707,91300.0,91299.0,0.1539505]
[1763561156588,0.38252,91303.0,91302.0,0.1539469]
[1763561156792,0.40492,91303.0,91302.0,0.1539469]
[1763561156988,0.06723428,91310.0,91309.0,0.1539385]
[1763561157190,0.05723429,91310.0,91309.0,0.1539385]
[1763561159183,0.04412,91300.0,91299.0,0.02207]
[1763561159383,0.40492,91300.0,91299.0,0.04434]
[1763561160495,0.3608,91300.0,91299.0,0.04434]
[1763561160700,0.04528429,91310.0,91309.0,0.04434]
[1763561160992,0.04528429,91310.0,91309.0,0.1539385]
[1763561161684,0.04428429,91310.0,91309.0,0.1539385]
[1763561162795,0.04528429,91310.0,91309.0,0.1539385]
[1763561162987,0.04528429,91310.0,91291.0,0.36096429]
[1763561163189,0.04492,91301.0,91300.0,0.13406733]
[1763561163395,0.40572,91301.0,91300.0,0.00219803]
[1763561164087,0.40572,91301.0,91300.0,0.04546803]
[1763561164294,0.40572,91301.0,91300.0,0.00219803]
[1763561164596,0.1545389,91292.0,91291.0,0.00016429]
[1763561164898,0.05767,91287.0,91286.0,2.27e-06]
[1763561165087,0.05767,91270.0,91269.0,0.1096461]
[1763561165394,0.05767,91270.0,91269.0,0.1529161]
[1763561165594,0.00999999,91280.0,91279.0,0.04327]
[1763561165785,0.3608,91287.0,91286.0,0.1528961]
[1763561166095,0.00016429,91289.0,91288.0,0.04327]
[1763561166290,0.00029269,91289.0,91288.0,0.04327]
[1763561166487,0.04521269,91289.0,91288.0,0.04327]
[1763561167185,0.02196269,91289.0,91288.0,0.04327]
[1763561168192,0.04521269,91289.0,91288.0,0.04327]
[1763561168397,0.04492,91279.0,91278.0,0.04327]
[1763561168588,0.04492,91279.0,91278.0,0.1318957]
[1763561168785,0.04492,91279.0,91278.0,0.1529057]
[1763561168987,0.38247,91283.0,91282.0,0.1529009]
[1763561169189,0.38247,91283.0,91280.0,0.00219803]
[1763561169190,0.02196269,91289.0,91288.0,0.1528937]
[1763561169491,0.04521269,91289.0,91288.0,0.1528937]
[1763561171195,0.04521269,91289.0,91288.0,0.04327]
[1763561171499,0.02167,91280.0,91279.0,0.1529045]
[1763561171895,0.04492,91274.0,91260.0,0.3608]
[1763561172102,0.05767,91270.0,91269.0,0.04327]
[1763561172307,0.05767,91270.0,91269.0,0.1529165]
[1763561172604,0.40572,91275.0,91274.0,0.1529105]
[1763561172799,0.3608,91275.0,91274.0,0.1529105]
[1763561173298,0.40572,91275.0,91274.0,0.1529105]
[1763561173897,0.04492,91271.0,91270.0,0.11184233]
[1763561174304,0.04492,91271.0,91270.0,0.15511233]
[1763561174506,0.07680153,91275.0,91274.0,0.1529105]
[1763561175301,0.12172153,91275.0,91274.0,0.04327]
[1763561175604,0.04492,91271.0,91270.0,0.13410333]
[1763561175799,0.04492,91271.0,91270.0,0.05914803]
[1763561176105,0.04492,91271.0,91270.0,0.04546803]
[1763561176491,0.04492,91271.0,91270.0,0.16879333]
[1763561177396,0.04492,91271.0,91270.0,0.15511333]
[1763561177597,0.04492,91271.0,91270.0,0.04546803]
[1763561177791,0.04492,91264.0,91263.0,0.1529237]
[1763561177997,0.00999999,91270.0,91260.0,0.01368]
[1763561177998,0.02167,91270.0,91269.0,0.04327]
[1763561178402,0.02167,91274.0,91273.0,0.131901]
[1763561178699,0.1545605,91274.0,91273.0,0.02226]
[1763561178899,0.1545641,91271.0,91270.0,0.00219803]
[1763561179100,0.1545641,91271.0,91270.0,0.04546803]
[1763561179406,0.04492,91280.0,91279.0,0.02226]
[1763561179903,0.04492,91278.0,91277.0,0.1529063]
[1763561180291,0.40572,91283.0,91282.0,0.1529009]
[1763561181002,0.04492,91281.0,91280.0,0.00219803]
[1763561181607,0.04492,91281.0,91280.0,0.02445803]
[1763561182207,0.04492,91281.0,91280.0,0.04546803]
[1763561182599,0.3608,91283.0,91281.0,0.1096321]
[1763561182794,0.00999999,91290.0,91288.0,0.1528937]
[1763561182994,0.02196269,91289.0,91288.0,0.1528937]
[1763561183704,0.00029269,91289.0,91288.0,0.1528937]
[1763561183902,0.04397269,91289.0,91288.0,0.1528937]
[1763561184302,0.00029269,91289.0,91288.0,0.1528937]
[1763561184511,0.04477269,91289.0,91288.0,0.04327]
[1763561184805,0.00029269,91289.0,91288.0,0.04327]
[1763561185495,0.3608,91301.0,91300.0,0.05959]
[1763561185700,0.3608,91301.0,91300.0,0.06178803]
[1763561185903,0.109592,91315.0,91305.0,0.1555733]
[1763561186097,0.52135308,91319.0,91318.0,0.1555577]
[1763561186304,0.54831056,91319.0,91318.0,0.04597]
[1763561187001,0.65789706,91319.0,91318.0,0.04597]
[1763561187914,0.04448,91319.0,91318.0,0.04597]
[1763561188106,0.38327,91321.0,91320.0,0.06178803]
[1763561188307,0.40528,91321.0,91320.0,0.04816803]
[1763561188703,0.1540749,91312.0,91311.0,0.3608]
[1763561188909,0.04448,91312.0,91311.0,0.40677]
[1763561189218,0.02247,91312.0,91311.0,0.40677]
[1763561189514,0.05447999,91320.0,91319.0,0.04597]
[1763561189813,0.04448,91320.0,91319.0,0.1555565]
[1763561190314,0.02247,91320.0,91319.0,0.1555565]
[1763561190515,0.04448,91320.0,91319.0,0.04597]
[1763561190715,0.04548,91320.0,91319.0,0.04597]
[1763561191008,0.04448,91312.0,91311.0,0.5163661]
[1763561191213,0.04448,91312.0,91311.0,0.3608]
[1763561191813,0.04448,91312.0,91311.0,0.38402]
[1763561192013,0.04448,91312.0,91311.0,0.40658]
[1763561192209,0.04548,91312.0,91311.0,0.40658]
[1763561192716,0.02347,91312.0,91311.0,0.40658]
[1763561193716,0.04595,91312.0,91311.0,0.40658]
[1763561195819,0.001,91312.0,91311.0,0.40658]
[1763561196116,0.04472,91312.0,91311.0,0.40658]
[1763561196319,0.04472,91312.0,91311.0,0.04578]
[1763561196523,0.04372,91311.0,91310.0,0.00219803]
[1763561196711,0.1533161,91311.0,91310.0,0.02496803]
[1763561197020,0.04372,91310.0,91309.0,0.00016429]
[1763561197523,0.04372,91310.0,91309.0,0.04549429]
[1763561198227,0.02124,91310.0,91309.0,0.04549429]
[1763561198414,0.04372,91310.0,91309.0,0.04549429]
[1763561198920,0.04372,91310.0,91309.0,0.00016429]
[1763561199526,0.04372,91310.0,91309.0,0.04549429]
[1763561199918,0.1095952,91312.0,91310.0,0.15712533]
[1763561200114,0.04372,91311.0,91310.0,0.02496803]
[1763561200514,0.1095952,91312.0,91309.0,0.00016429]
[1763561200515,0.1533173,91310.0,91309.0,0.00016429]
[1763561200713,0.04372,91291.0,91290.0,0.5157512]
[1763561200913,0.04372,91291.0,91290.0,0.40832803]
[1763561201126,0.04372,91291.0,91290.0,0.36299803]
[1763561201624,0.04372,91291.0,91290.0,0.3608]
[1763561202125,0.04372,91291.0,91290.0,0.36299803]
[1763561204025,0.04372,91291.0,91290.0,0.40832803]
[1763561205027,0.04372,91291.0,91290.0,0.02496803]
[1763561205624,0.04372,91291.0,91290.0,0.04752803]
[1763561205819,0.04372,91291.0,91290.0,0.15714933]
[1763561206020,0.3608,91294.0,91293.0,0.1549477]
[1763561206220,0.00016429,91300.0,91299.0,0.1549405]
[1763561206535,0.00016429,91300.0,91299.0,0.5157405]
[1763561207022,0.04388429,91300.0,91299.0,0.04533]
[1763561207416,0.00016429,91300.0,91299.0,0.04533]
[1763561210226,0.04388429,91300.0,91299.0,0.04533]
[1763561210734,0.00016429,91300.0,91299.0,0.04533]
[1763561211426,0.04388429,91300.0,91299.0,0.04533]
[1763561211630,0.40468429,91300.0,91299.0,0.04533]
[1763561211824,0.02124,91291.0,91290.0,0.4704213]
[1763561212026,0.40468429,91300.0,91299.0,0.1323805]
[1763561212732,0.40468429,91300.0,91299.0,0.1549405]
[1763561212925,0.00016429,91300.0,91299.0,0.1549405]
[1763561214528,0.04388429,91300.0,91299.0,0.1549405]
[1763561214729,0.04388429,91300.0,91299.0,0.04533]
[1763561214926,0.04372,91291.0,91290.0,0.40613]
[1763561215233,0.04372,91291.0,91290.0,0.51794933]
[1763561216730,0.04372,91291.0,91290.0,0.15714933]
[1763561217431,0.04372,91291.0,91290.0,0.04752803]
[1763561217630,0.04372,91291.0,91290.0,0.15714933]
[1763561218333,0.04372,91291.0,91290.0,0.02496803]
[1763561218637,0.04372,91291.0,91290.0,0.00219803]
[1763561218829,0.04372,91291.0,91290.0,0.02496803]
[1763561219133,0.04372,91291.0,91290.0,0.04752803]
[1763561221725,0.4704153,91295.0,91294.0,0.1547965]
[1763561221935,0.54215785,91295.0,91294.0,0.1547965]
[1763561222434,0.54215785,91295.0,91294.0,0.04518]
[1763561223434,0.1536601,91291.0,91290.0,0.02351803]
[1763561223735,0.1536601,91291.0,91290.0,0.15554933]
[1763561225130,0.1536601,91291.0,91290.0,0.04592803]
[1763561225536,0.1536601,91291.0,91290.0,0.02351803]
[1763561225837,0.18138039,91291.0,91290.0,0.02351803]
[1763561226033,0.1536709,91282.0,91281.0,0.40453]
[1763561226734,0.1536709,91282.0,91281.0,0.04373]
[1763561227234,0.18138962,91282.0,91281.0,0.04373]
[1763561227431,0.18138962,91282.0,91280.0,0.00219803]
[1763561227627,0.1536829,91273.0,91272.0,0.04373]
[1763561228333,0.04404,91272.0,91271.0,0.3608]
[1763561228538,0.1536979,91260.0,91259.0,0.04373]
[1763561228731,0.04404,91260.0,91259.0,0.04373]
[1763561228929,0.04404,91260.0,91259.0,0.02132]
[1763561229225,0.04404,91260.0,91259.0,0.04373]
[1763561230135,0.04504,91260.0,91259.0,0.04373]
[1763561230538,0.04404,91249.0,91248.0,0.40453]
[1763561230736,0.04504,91260.0,91259.0,0.04373]
[1763561231135,0.001,91260.0,91259.0,0.04373]
[1763561231637,0.04504,91260.0,91259.0,0.04373]
[1763561232140,0.02386,91260.0,91259.0,0.04373]
[1763561232328,0.04604,91260.0,91259.0,0.04373]
[1763561232535,0.04404,91252.0,91251.0,0.1533982]
[1763561232728,0.04704,91260.0,91259.0,0.1533886]
[1763561232930,0.38666,91260.0,91259.0,0.1533886]
[1763561233130,0.38366,91260.0,91259.0,0.1533886]
[1763561233433,0.003,91260.0,91259.0,0.1533886]
[1763561233635,0.00016438,91269.0,91268.0,0.1533777]
[1763561234126,4.38e-06,91269.0,91268.0,0.1533777]
[1763561235641,0.00100438,91269.0,91268.0,0.1533777]
[1763561235838,0.00300438,91269.0,91268.0,0.1533777]
[1763561236235,0.00200438,91269.0,91268.0,0.1533777]
[1763561236437,0.00100438,91269.0,91268.0,0.1533777]
[1763561236737,0.04404,91261.0,91260.0,0.05666]
[1763561236945,0.04404,91261.0,91260.0,0.05885803]
[1763561237142,0.00300438,91269.0,91268.0,0.04373]
[1763561237435,0.00300438,91269.0,91268.0,0.1533777]
[1763561237637,0.02586438,91269.0,91268.0,0.1533777]
[1763561237833,0.00300438,91269.0,91268.0,0.1533777]
[1763561238036,0.15669088,91269.0,91268.0,0.04373]
[1763561238236,0.04404,91261.0,91260.0,0.04373]
[1763561238437,0.04404,91261.0,91260.0,0.05885803]
[1763561238741,0.001,91261.0,91260.0,0.16851473]
[1763561238941,4.38e-06,91269.0,91268.0,0.1096477]
[1763561239133,4.38e-06,91269.0,91268.0,0.4704477]
[1763561239839,4.38e-06,91269.0,91268.0,0.3608]
[1763561240044,0.04404438,91269.0,91268.0,0.40453]
[1763561240345,0.04704438,91269.0,91268.0,0.40453]
[1763561242033,0.00999999,91280.0,91279.0,0.1533645]
[1763561242240,0.04404,91290.0,91289.0,0.1533525]
[1763561242435,0.08532723,91290.0,91289.0,0.1533525]
[1763561243045,0.04404,91284.0,91283.0,0.02132]
[1763561243237,0.04404,91281.0,91280.0,0.00236241]
[1763561243540,0.04404,91281.0,91280.0,0.04609241]
[1763561243738,0.02286,91281.0,91280.0,0.04609241]
[1763561243944,0.01299999,91290.0,91280.0,0.01529241]
[1763561244243,0.003,91290.0,91289.0,0.04272]
[1763561244646,0.00016438,91299.0,91298.0,0.1523317]
[1763561244843,4.38e-06,91299.0,91298.0,0.5131317]
[1763561245935,4.38e-06,91299.0,91298.0,0.40352]
[1763561246136,0.04340438,91299.0,91298.0,0.5094]
[1763561246338,4.38e-06,91299.0,91298.0,0.6190117]
[1763561246545,4.38e-06,91299.0,91298.0,0.5762917]
[1763561248541,4.38e-06,91299.0,91298.0,0.4704117]
[1763561248845,4.38e-06,91299.0,91298.0,0.5762517]
[1763561249649,0.5137853,91320.0,91319.0,0.04272]
[1763561249838,0.5137853,91320.0,91312.0,0.40352]
[1763561249839,0.02186,91313.0,91312.0,0.40352]
[1763561250143,0.4042,91320.0,91319.0,0.04272]
[1763561250539,0.0434,91313.0,91312.0,0.3608]
[1763561250842,0.05699,91311.0,91310.0,0.00236231]
[1763561251146,0.41779,91311.0,91310.0,0.00236231]
[1763561251340,0.41779,91311.0,91310.0,0.02373231]
[1763561251549,0.41779,91311.0,91310.0,0.00236231]
[1763561251739,0.44569457,91311.0,91310.0,0.00016428]
[1763561251937,0.1096166,91294.0,91293.0,0.14988]
[1763561252442,0.00641322,91300.0,91299.0,0.04404]
[1763561252641,0.1308693,91300.0,91299.0,0.04404]
[1763561253138,0.1096093,91300.0,91299.0,0.04404]
[1763561253540,0.1308693,91300.0,91299.0,0.04404]
[1763561253745,0.1096093,91300.0,91299.0,0.04404]
[1763561253941,0.3608,91301.0,91300.0,0.04623803]
[1763561254241,0.40396,91301.0,91300.0,0.04623803]
[1763561254944,0.5135681,91301.0,91300.0,0.04623803]
[1763561255351,0.04332428,91309.0,91308.0,0.04404]
[1763561255642,0.00016428,91309.0,91308.0,0.04404]
[1763561256850,0.00116428,91309.0,91308.0,0.04404]
[1763561258238,0.00216428,91309.0,91308.0,0.04404]
[1763561258441,0.04532428,91309.0,91308.0,0.04404]
[1763561258644,0.04532428,91309.0,91308.0,0.0227]
[1763561258847,0.00216428,91309.0,91308.0,0.04404]
[1763561259043,0.00116428,91309.0,91308.0,0.04404]
[1763561259240,0.00016428,91309.0,91308.0,0.04404]
[1763561260033,0.02242428,91309.0,91308.0,0.04404]
[1763561260944,0.04432428,91309.0,91308.0,0.04404]
[1763561261149,0.04532428,91309.0,91308.0,0.04404]
[1763561261835,0.00216428,91309.0,91308.0,0.04404]
[1763561262044,0.00216428,91309.0,91308.0,0.04704]
[1763561263044,0.3608,91320.0,91319.0,0.04404]
[1763561263344,0.00027375,91326.0,91325.0,0.04404]
[1763561263543,0.00027375,91326.0,91325.0,0.1536193]
[1763561263944,0.00027375,91326.0,91322.0,0.3608]
[1763561263945,0.04316,91323.0,91322.0,0.3608]
[1763561264244,0.40027375,91326.0,91319.0,0.04404]
[1763561264245,0.057,91320.0,91319.0,0.04404]
[1763561264444,0.04316,91320.0,91319.0,0.04404]
[1763561264648,0.47065195,91326.0,91319.0,0.04404]
[1763561264848,0.51381195,91326.0,91325.0,0.04404]
[1763561265049,0.04343375,91326.0,91325.0,0.04404]
[1763561265245,0.15301185,91326.0,91325.0,0.04404]
[1763561265653,0.15401185,91326.0,91325.0,0.04404]
[1763561266153,0.15301185,91326.0,91325.0,0.04404]
[1763561266344,0.1095841,91321.0,91320.0,0.00219803]
[1763561266556,0.1527441,91321.0,91320.0,0.00219803]
[1763561267554,0.1527501,91316.0,91315.0,0.3608]
[1763561267749,0.1527501,91316.0,91315.0,0.40484]
[1763561268060,0.057,91320.0,91319.0,0.04404]
[1763561268258,0.04316,91316.0,91315.0,0.3608]
[1763561268455,0.04316,91316.0,91315.0,0.40484]
[1763561269055,0.04316,91316.0,91315.0,0.04404]
[1763561269560,0.04316,91314.0,91313.0,0.00016428]
[1763561269753,0.04316,91314.0,91313.0,0.02286428]
[1763561270150,0.04316,91314.0,91313.0,0.04420428]
[1763561272756,0.04316,91314.0,91313.0,0.00016428]
[1763561273149,0.07117787,91314.0,91313.0,0.02286428]
[1763561273548,0.07117787,91314.0,91313.0,0.04420428]
[1763561273857,0.04927787,91314.0,91313.0,0.04420428]
[1763561274054,0.00641322,91320.0,91319.0,0.04404]
[1763561274254,0.10985295,91326.0,91313.0,0.00016428]
[1763561274255,0.04343375,91326.0,91325.0,0.04404]
[1763561274460,0.07145949,91326.0,91325.0,0.04404]
[1763561275160,0.07145949,91326.0,91325.0,0.0227]
[1763561275362,0.18103759,91326.0,91325.0,0.04404]
[1763561275661,0.1527417,91323.0,91322.0,0.1536221]
[1763561275861,0.18076744,91323.0,91322.0,0.1536221]
[1763561276068,0.04316,91321.0,91320.0,0.02489803]
[1763561276357,0.07118574,91321.0,91320.0,0.00219803]
[1763561276566,0.1527525,91314.0,91313.0,0.00016428]
[1763561276752,0.1527585,91309.0,91293.0,0.3608]
[1763561276952,0.04316,91283.0,91282.0,0.3835]
[1763561277261,0.00641322,91290.0,91289.0,0.1536625]
[1763561277458,0.03910046,91307.0,91306.0,0.04404]
[1763561277664,0.40396,91314.0,91313.0,0.04404]
[1763561277851,0.1095937,91313.0,91310.0,0.00219803]
[1763561278053,0.02802009,91312.0,91311.0,0.1536361]
[1763561278462,0.00016428,91316.0,91315.0,0.1536313]
[1763561278658,0.00016428,91316.0,91315.0,0.04404]
[1763561279963,0.00216428,91316.0,91315.0,0.04404]
[1763561280266,0.00027375,91326.0,91325.0,0.04404]
[1763561280563,0.00641322,91340.0,91325.0,0.5144193]
[1763561280769,0.3608,91354.0,91353.0,0.04404]
[1763561280770,0.03910046,91354.0,91353.0,0.04404]
[1763561280964,0.50162829,91360.0,91356.0,0.04404]
[1763561280965,0.04316,91357.0,91356.0,0.04404]
[1763561281167,0.02126,91348.0,91347.0,0.04404]
[1763561281364,0.40396,91355.0,91354.0,0.0227]
[1763561281660,0.04587,91351.0,91350.0,0.00219803]
[1763561281861,0.04587,91339.0,91324.0,0.3608]
[1763561282068,0.43327421,91339.0,91326.0,0.109577]
[1763561282469,0.43327421,91339.0,91324.0,0.3608]
[1763561282670,0.43327421,91339.0,91324.0,0.4703798]
[1763561283072,0.43427421,91339.0,91324.0,0.3608]
[1763561284367,0.43427421,91339.0,91327.0,0.1095765]
[1763561284662,0.43427421,91339.0,91324.0,0.3608]
[1763561284663,0.02760421,91339.0,91338.0,0.15316798]
[1763561285068,0.00641322,91350.0,91343.0,0.1095572]
[1763561285254,0.00641322,91350.0,91349.0,0.0211]
[1763561285255,0.04587,91350.0,91349.0,0.0211]
[1763561285459,0.07240485,91350.0,91338.0,0.00016428]
[1763561285658,0.0231,91341.0,91340.0,0.04563803]
[1763561286962,0.001,91341.0,91340.0,0.04563803]
[1763561287163,0.001,91341.0,91340.0,0.40643803]
[1763561289263,0.002,91341.0,91340.0,0.40643803]
[1763561289465,0.04787,91341.0,91340.0,0.40643803]
[1763561289856,0.002,91341.0,91340.0,0.40643803]
[1763561291967,0.1574301,91341.0,91340.0,0.00219803]
[1763561292567,0.04787,91341.0,91340.0,0.15519933]
[1763561292969,0.002,91341.0,91340.0,0.15519933]
[1763561293676,0.04787,91341.0,91340.0,0.00219803]
[1763561293867,0.04587,91339.0,91338.0,0.00016428]
[1763561294174,0.01323,91344.0,91311.0,0.3608]
[1763561294175,0.0231,91355.0,91354.0,0.04344]
[1763561294472,0.04587,91351.0,91350.0,0.00219803]
[1763561294866,0.08076025,91351.0,91350.0,0.00219803]
[1763561295975,0.08176025,91351.0,91350.0,0.00219803]
[1763561296677,0.08176025,91351.0,91350.0,0.11174733]
[1763561297063,0.08376025,91351.0,91350.0,0.00219803]
[1763561297977,0.08376025,91351.0,91350.0,0.02329803]
[1763561298173,0.08376025,91351.0,91350.0,0.04563803]
[1763561298568,0.04587,91342.0,91341.0,0.00016428]
[1763561298772,0.19031915,91342.0,91341.0,0.00016428]
[1763561298971,0.04587,91329.0,91316.0,0.3608]
[1763561299171,0.04587,91329.0,91328.0,0.4914757]
[1763561299379,0.0231,91333.0,91332.0,0.1530109]
[1763561299778,0.05799025,91333.0,91332.0,0.1530109]
[1763561300170,0.09399025,91333.0,91332.0,0.1095709]
[1763561300371,0.20355995,91333.0,91332.0,0.1095709]
[1763561300571,0.09399025,91333.0,91332.0,0.1095709]
[1763561301173,0.09499025,91333.0,91332.0,0.1095709]
[1763561301774,0.09599025,91333.0,91332.0,0.1095709]
[1763561303283,0.04587,91331.0,91330.0,0.00219803]
[1763561303580,0.1554505,91324.0,91323.0,0.1095811]
[1763561303782,0.04587,91321.0,91320.0,0.11178313]
[1763561304091,0.04587,91321.0,91320.0,0.00219803]
[1763561304279,0.08076025,91321.0,91320.0,0.00219803]
[1763561305383,0.08176025,91321.0,91320.0,0.00219803]
[1763561305584,0.08276025,91321.0,91320.0,0.11178333]
[1763561306083,0.08276025,91321.0,91320.0,0.00219803]
[1763561306284,0.08176025,91321.0,91320.0,0.11178333]
[1763561306481,0.08276025,91321.0,91320.0,0.11178333]
[1763561306984,0.08276025,91321.0,91320.0,0.15559333]
[1763561306985,0.05999025,91321.0,91320.0,0.15559333]
[1763561307483,0.08296025,91321.0,91320.0,0.00219803]
[1763561307786,0.08296025,91321.0,91315.0,8.597e-05]
[1763561307787,0.1552201,91316.0,91315.0,8.597e-05]
[1763561307975,0.19011035,91316.0,91315.0,8.597e-05]
[1763561309081,0.21542436,91316.0,91315.0,8.597e-05]
[1763561309378,0.19011035,91316.0,91315.0,8.597e-05]
[1763561309580,0.21641408,91316.0,91315.0,8.597e-05]
[1763561310476,0.21741408,91316.0,91315.0,8.597e-05]
[1763561310988,0.19211035,91316.0,91315.0,8.597e-05]
[1763561311481,0.19211035,91316.0,91315.0,0.13278727]
[1763561311482,0.08252025,91316.0,91315.0,0.13278727]
[1763561311681,0.18840025,91316.0,91315.0,0.13278727]
[1763561311891,0.08252025,91316.0,91315.0,0.15549727]
[1763561312073,0.08252025,91316.0,91315.0,0.04590597]
[1763561313084,0.03689025,91316.0,91315.0,0.04590597]
[1763561313285,0.08154025,91316.0,91315.0,0.04590597]
[1763561314689,0.04465,91325.0,91324.0,0.1095799]
[1763561315084,0.3608,91332.0,91331.0,0.1537121]
[1763561315085,0.40545,91332.0,91331.0,0.1537121]
[1763561316287,0.04465,91338.0,91337.0,0.1316949]
[1763561316486,0.04465,91338.0,91337.0,0.1095649]
[1763561316994,0.04465,91331.0,91330.0,0.11177133]
[1763561317793,0.40545,91331.0,91330.0,0.00219803]
[1763561317993,0.04465,91324.0,91323.0,0.3608]
[1763561318895,0.1542305,91324.0,91323.0,0.3608]
[1763561319104,0.1542341,91321.0,91320.0,0.00219803]
[1763561319594,0.1542401,91316.0,91315.0,8.597e-05]
[1763561319782,0.2601201,91316.0,91315.0,8.597e-05]
[1763561321190,0.2611201,91316.0,91315.0,8.597e-05]
[1763561321398,0.04465,91291.0,91290.0,0.6204413]
[1763561321692,0.04465,91291.0,91290.0,0.38512803]
[1763561321693,0.1542701,91291.0,91290.0,0.38512803]
[1763561321892,0.1542701,91291.0,91290.0,0.36299803]
[1763561322394,0.15435607,91291.0,91290.0,0.00219803]
[1763561322892,0.04473597,91291.0,91290.0,0.00219803]
[1763561323094,0.04473597,91291.0,91290.0,0.04633803]
[1763561324187,0.04473597,91291.0,91290.0,0.04733803]
[1763561324388,0.04473597,91291.0,91290.0,0.04833803]
[1763561327296,0.04473597,91291.0,91290.0,0.02632803]
[1763561327888,0.04473597,91291.0,91290.0,0.04833803]
[1763561328488,0.00219803,91290.0,91282.0,0.3608]
[1763561328687,0.1542881,91276.0,91275.0,0.3608]
[1763561329893,0.1542881,91276.0,91264.0,0.3608]
[1763561329894,0.1543013,91265.0,91264.0,0.3608]
[1763561330489,0.1543145,91254.0,91253.0,0.0222331]
[1763561330699,0.1523145,91254.0,91253.0,0.0442431]
[1763561330896,0.04465,91254.0,91253.0,0.0442431]
[1763561331198,0.04465,91260.0,91259.0,0.1537985]
[1763561331498,0.04473533,91265.0,91264.0,0.1537925]
[1763561332896,8.533e-05,91265.0,91264.0,0.1537925]
[1763561333300,0.10608428,91274.0,91264.0,0.1537925]
[1763561333301,0.00016428,91274.0,91273.0,0.1537817]
[1763561334405,0.00116428,91274.0,91273.0,0.1537817]
[1763561334905,0.00116428,91274.0,91273.0,0.5145817]
[1763561335199,0.00216428,91274.0,91273.0,0.5145817]
[1763561337099,0.00074321,91274.0,91273.0,0.5145817]
[1763561337395,0.04465,91281.0,91280.0,0.04414]
[1763561337804,0.04465,91289.0,91288.0,0.1317525]
[1763561338002,0.04465,91289.0,91273.0,0.4704414]
[1763561338003,0.02233,91275.0,91274.0,0.04414]
[1763561338196,0.04465,91275.0,91274.0,0.04414]
[1763561338395,0.04465,91275.0,91273.0,0.5763609]
[1763561338396,0.02232,91280.0,91278.0,0.1096346]
[1763561338595,0.00219803,91280.0,91279.0,0.04414]
[1763561339202,0.02451803,91280.0,91279.0,0.04414]
[1763561339404,0.04684803,91280.0,91279.0,0.04414]
[1763561339607,0.00219803,91280.0,91279.0,0.04414]
[1763561339998,0.11183133,91280.0,91279.0,0.04414]
[1763561340703,0.16916133,91280.0,91279.0,0.02213]
[1763561341001,0.16916133,91280.0,91273.0,0.3608]
[1763561341002,0.1542905,91274.0,91273.0,0.3608]